fUST/lending_fUST_20250602
["ID","MTS","AMOUNT","RATE_DAILY","PERIOD"]
[363768036,1748866250129,-156.587,0.00019233,2]
[363768039,1748866250150,-631.19582775,0.00019264,2]
[363768042,1748866250171,-162.380719,0.00019288,2]
[363768045,1748866250184,-88244.68551454,0.00019298,2]
[363768048,1748866250204,-151.0,0.00019298,2]
[363768051,1748866250220,-151.0,0.00019298,2]
[363768053,1748866250236,-151.0,0.00019298,2]
[363768056,1748866250251,-151.0,0.000193,2]
[363768059,1748866250265,-7034.19338387,0.00019314,2]
[363768061,1748866250281,-430.0,0.00019323,2]
[363768064,1748866250295,-430.0,0.00019323,2]
[363768066,1748866250311,-1320.38,0.00019323,2]
[363768068,1748866250326,-430.0,0.00019323,2]
[363768071,1748866250344,-471.17,0.00019323,2]
[363768074,1748866250359,-3118.67,0.00019323,2]
[363768076,1748866250375,-151.0,0.00019324,2]
[363768079,1748866250390,-4901.09,0.00019324,2]
[363768081,1748866250404,-430.0,0.00019324,2]
[363768084,1748866250419,-430.0,0.00019324,2]
[363768087,1748866250434,-4129.7,0.00019324,2]
[363768089,1748866250449,-2242.45,0.00019324,2]
[363768092,1748866250464,-2191.02,0.00019324,2]
[363768094,1748866250479,-216.2380705,0.00019324,2]
[363768097,1748866250495,-785.05,0.00019324,2]
[363768100,1748866250511,-151.0,0.00019324,2]
[363768102,1748866250527,-430.0,0.00019324,2]
[363768105,1748866250543,-430.0,0.00019324,2]
[363768107,1748866250559,-619.3,0.00019324,2]
[363768110,1748866250574,-1156.79,0.00019324,2]
[363768113,1748866250590,-430.0,0.00019324,2]
[363768115,1748866250606,-430.0,0.00019324,2]
[363768118,1748866250621,-736.37,0.00019324,2]
[363768120,1748866250637,-1180.67,0.00019324,2]
[363768123,1748866250651,-3770.39,0.00019324,2]
[363768126,1748866250667,-430.0,0.00019324,2]
[363768128,1748866250682,-430.0,0.00019324,2]
[363768131,1748866250698,-712.54,0.00019324,2]
[363768133,1748866250713,-461.65,0.00019324,2]
[363768136,1748866250728,-430.0,0.00019324,2]
[363768138,1748866250743,-513.8,0.00019324,2]
[363768141,1748866250759,-1174.27,0.00019324,2]
[363768143,1748866250771,-2890.69,0.00019324,2]
[363768145,1748866250781,-430.0,0.00019324,2]
[363768147,1748866250792,-430.0,0.00019324,2]
[363768149,1748866250802,-430.0,0.00019325,2]
[363768168,1748866250970,-430.0,0.00019325,2]
[363768171,1748866250981,-949.56,0.00019325,2]
[363768173,1748866250992,-430.0,0.00019325,2]
[363768175,1748866251002,-417.86106119,0.00019325,2]
[363768177,1748866251012,-429.05555512,0.00019325,2]
[363768179,1748866251021,-1065.04,0.00019325,2]
[363768181,1748866251032,-430.0,0.00019325,2]
[363768183,1748866251042,-7394.04,0.00019325,2]
[363768185,1748866251055,-1541.52,0.00019325,2]
[363768187,1748866251065,-1130.52,0.00019325,2]
[363768189,1748866251076,-430.0,0.00019325,2]
[363768191,1748866251087,-867.55,0.00019325,2]
[363768193,1748866251096,-4395.71,0.00019325,2]
[363768195,1748866251106,-1146.56,0.00019325,2]
[363768197,1748866251117,-430.0,0.00019325,2]
[363768199,1748866251127,-439.19,0.00019325,2]
[363768201,1748866251137,-452.32,0.00019326,2]
[363768203,1748866251147,-151.0,0.00019329,2]
[363768205,1748866251157,-151.0,0.00019329,2]
[363768207,1748866251166,-151.0,0.00019329,2]
[363768209,1748866251176,-193.985419,0.00019329,2]
[363768211,1748866251186,-193.985419,0.00019329,2]
[363768213,1748866251195,-41218.01644711,0.00019329,2]
[363768216,1748866251206,-168.3888056,0.00019343,2]
[363768218,1748866251216,-1000.0,0.00019358,5]
[363768220,1748866251226,-174.61919141,0.00019398,2]
[363768222,1748866251235,-151.0,0.00019418,2]
[363768224,1748866251245,-5000.0,0.00019418,2]
[363768226,1748866251256,-2548.39645406,0.00019446,2]
[363768227,1748866251266,-181.08010149,0.00019453,2]
[363768229,1748866251275,-151.0,0.00019486,12]
[363768231,1748866251285,-187.78006525,0.00019508,2]
[363768233,1748866251295,-800.0,0.00019528,2]
[363768235,1748866251305,-631.19582775,0.00019536,2]
[363768237,1748866251316,-7034.19338387,0.00019555,2]
[363768239,1748866251326,-194.72792766,0.00019563,2]
[363768242,1748866251336,-558.70945928,0.00019578,2]
[363768243,1748866251346,-112667.52729,0.00019596,2]
[363768245,1748866251355,-430.0,0.00019597,2]
[363768248,1748866251367,-430.0,0.00019597,2]
[363768250,1748866251377,-1320.38,0.00019597,2]
[363768252,1748866251387,-430.0,0.00019597,2]
[363768254,1748866251398,-471.17,0.00019597,2]
[363768256,1748866251408,-3118.67,0.00019597,2]
[363768258,1748866251418,-4901.09,0.00019598,2]
[363768260,1748866251428,-430.0,0.00019598,2]
[363768262,1748866251438,-4129.7,0.00019598,2]
[363768264,1748866251447,-2242.45,0.00019598,2]
[363768266,1748866251457,-2191.02,0.00019598,2]
[363768268,1748866251466,-785.05,0.00019598,2]
[363768270,1748866251474,-430.0,0.00019598,2]
[363768272,1748866251483,-430.0,0.00019598,2]
[363768274,1748866251493,-619.3,0.00019598,2]
[363768276,1748866251503,-1156.79,0.00019598,2]
[363768279,1748866251517,-430.0,0.00019598,2]
[363768281,1748866251527,-430.0,0.00019598,2]
[363768283,1748866251536,-736.37,0.00019598,2]
[363768285,1748866251546,-1180.67,0.00019598,2]
[363768287,1748866251558,-3770.39,0.00019598,2]
[363768289,1748866251568,-430.0,0.00019598,2]
[363768291,1748866251578,-430.0,0.00019598,2]
[363768293,1748866251588,-712.54,0.00019598,2]
[363768295,1748866251597,-461.65,0.00019598,2]
[363768297,1748866251607,-430.0,0.00019598,2]
[363768299,1748866251617,-513.8,0.00019598,2]
[363768301,1748866251628,-1174.27,0.00019598,2]
[363768303,1748866251639,-2890.69,0.00019598,2]
[363768305,1748866251649,-447.27521055,0.00019598,2]
[363768307,1748866251659,-1534.851286,0.00019599,2]
[363768309,1748866251669,-430.0,0.00019599,2]
[363768311,1748866251679,-430.0,0.00019599,2]
[363768313,1748866251689,-949.56,0.00019599,2]
[363768315,1748866251699,-430.0,0.00019599,2]
[363768317,1748866251708,-1065.04,0.00019599,2]
[363768319,1748866251718,-430.0,0.00019599,2]
[363768321,1748866251728,-7394.04,0.00019599,2]
[363768324,1748866251738,-1541.52,0.00019599,2]
[363768326,1748866251749,-1130.52,0.00019599,2]
[363768328,1748866251759,-430.0,0.00019599,2]
[363768330,1748866251768,-867.55,0.00019599,2]
[363768332,1748866251778,-4395.71,0.00019599,2]
[363768334,1748866251788,-1146.56,0.00019599,2]
[363768336,1748866251798,-430.0,0.00019599,2]
[363768338,1748866251809,-439.19,0.00019599,2]
[363768340,1748866251818,-452.32,0.000196,2]
[363768342,1748866251829,-151.0,0.000196,2]
[363768344,1748866251839,-151.0,0.000196,2]
[363768346,1748866251850,-151.0,0.00019603,2]
[363768348,1748866251861,-201.93286099,0.00019618,2]
[363768350,1748866251871,-183.48147604,0.0001964,2]
[363768352,1748866251884,-209.40437684,0.00019673,2]
[363768354,1748866251894,-800.0,0.00019685,2]
[363768357,1748866251904,-841.37139856,0.00019718,2]
[363768359,1748866251914,-217.15233878,0.00019728,2]
[363768361,1748866251925,-800.0,0.00019729,2]
[363768363,1748866251934,-800.0,0.00019748,2]
[363768365,1748866251944,-3172.80630522,0.00019772,2]
[363768367,1748866251953,-225.18697532,0.00019783,2]
[363768369,1748866251963,-7034.19338387,0.00019797,2]
[363768371,1748866251973,-274.0,0.00019798,2]
[363768373,1748866251984,-587.0,0.00019798,2]
[363768375,1748866251994,-22478.67090911,0.00019799,2]
[363768377,1748866252003,-89920.25416044,0.000198,2]
[363768379,1748866252014,-151.0,0.000198,2]
[363768381,1748866252025,-151.0,0.000198,2]
[363768383,1748866252036,-151.0,0.000198,2]
[363768385,1748866252048,-151.0,0.00019813,13]
[363768387,1748866252058,-176.300841,0.00019834,3]
[363768389,1748866252067,-233.51889341,0.00019838,2]
[363768391,1748866252077,-500.0,0.0001984,2]
[363768393,1748866252087,-430.0,0.00019871,2]
[363768395,1748866252098,-430.0,0.00019871,2]
[363768397,1748866252108,-1320.38,0.00019871,2]
[363768399,1748866252119,-430.0,0.00019871,2]
[363768401,1748866252131,-471.17,0.00019871,2]
[363768403,1748866252142,-3118.67,0.00019871,2]
[363768406,1748866252152,-4901.09,0.00019872,2]
[363768408,1748866252162,-430.0,0.00019872,2]
[363768410,1748866252172,-4129.7,0.00019872,2]
[363768412,1748866252182,-2242.45,0.00019872,2]
[363768414,1748866252192,-2191.02,0.00019872,2]
[363768416,1748866252201,-785.05,0.00019872,2]
[363768417,1748866252212,-430.0,0.00019872,2]
[363768419,1748866252221,-430.0,0.00019872,2]
[363768422,1748866252231,-619.3,0.00019872,2]
[363768424,1748866252241,-1156.79,0.00019872,2]
[363768426,1748866252251,-430.0,0.00019872,2]
[363768428,1748866252260,-430.0,0.00019872,2]
[363768430,1748866252270,-736.37,0.00019872,2]
[363768432,1748866252280,-1180.67,0.00019872,2]
[363768434,1748866252290,-3770.39,0.00019872,2]
[363768436,1748866252299,-430.0,0.00019872,2]
[363768438,1748866252309,-431.50025,0.00019872,2]
[363768440,1748866252320,-712.54,0.00019872,2]
[363768442,1748866252329,-461.65,0.00019872,2]
[363768444,1748866252339,-551.99942704,0.00019872,2]
[363768446,1748866252348,-513.8,0.00019872,2]
[363768448,1748866252358,-1174.27,0.00019872,2]
[363768450,1748866252369,-2890.69,0.00019872,2]
[363768452,1748866252378,-430.0,0.00019873,2]
[363768454,1748866252388,-430.0,0.00019873,2]
[363768456,1748866252398,-949.56,0.00019873,2]
[363768459,1748866252408,-430.0,0.00019873,2]
[363768460,1748866252419,-1065.04,0.00019873,2]
[363768463,1748866252428,-430.0,0.00019873,2]
[363768465,1748866252438,-7394.04,0.00019873,2]
[363768467,1748866252448,-1541.52,0.00019873,2]
[363768469,1748866252458,-1130.52,0.00019873,2]
[363768471,1748866252469,-430.0,0.00019873,2]
[363768473,1748866252479,-867.55,0.00019873,2]
[363768474,1748866252488,-4395.71,0.00019873,2]
[363768475,1748866252498,-1146.56,0.00019873,2]
[363768476,1748866252509,-430.0,0.00019873,2]
[363768477,1748866252519,-439.19,0.00019873,2]
[363768478,1748866252528,-452.32,0.00019874,2]
[363768479,1748866252539,-242.15909246,0.00019893,2]
[363768480,1748866252549,-151.0,0.000199,2]
[363768481,1748866252561,-501.11265055,0.0001993,2]
[363768482,1748866252571,-500.0,0.0001993,2]
[363768483,1748866252582,-500.0,0.0001993,2]
[363768484,1748866252592,-354.32907423,0.0001993,2]
[363768485,1748866252602,-251.11897888,0.00019948,2]
[363768486,1748866252613,-500.0,0.00019953,2]
[363768488,1748866252623,-500.0,0.00019953,2]
[363768489,1748866252634,-500.0,0.00019953,2]
[363768491,1748866252644,-500.0,0.00019953,2]
[363768494,1748866252655,-256.12305451,0.00019966,2]
[363768496,1748866252664,-5000.0,0.00019966,2]
[363768498,1748866252674,-1318.64,0.00019971,2]
[363768500,1748866252685,-500.0,0.00019973,2]
[363768502,1748866252695,-500.0,0.00019973,2]
[363768504,1748866252704,-500.0,0.00019973,2]
[363768506,1748866252715,-500.0,0.00019973,2]
[363768508,1748866252725,-341.58993269,0.00019973,2]
[363768510,1748866252736,-500.0,0.00019973,2]
[363768512,1748866252747,-500.0,0.00019973,2]
[363768514,1748866252756,-575.49483425,0.00019973,2]
[363768516,1748866252767,-500.42355388,0.00019973,2]
[363768518,1748866252777,-502.27571044,0.00019973,2]
[363768520,1748866252786,-503.1499942,0.00019973,2]
[363768522,1748866252796,-423.43598683,0.00019973,2]
[363768524,1748866252806,-500.0,0.00019973,2]
[363768526,1748866252816,-500.0,0.00019973,2]
[363768528,1748866252826,-500.0,0.00019973,2]
[363768540,1748866252928,-500.0,0.00019973,2]
[363768542,1748866252940,-500.0,0.00019973,2]
[363768544,1748866252950,-500.0,0.00019973,2]
[363768546,1748866252959,-160.24617975,0.00019973,2]
[363768548,1748866252972,-500.0,0.00019973,2]
[363768550,1748866252982,-500.0,0.00019973,2]
[363768552,1748866252991,-347.47889072,0.00019973,2]
[363768554,1748866253001,-502.26417517,0.00019973,2]
[363768556,1748866253010,-500.0,0.00019973,2]
[363768558,1748866253020,-500.0,0.00019973,2]
[363768560,1748866253030,-500.0,0.00019973,2]
[363768562,1748866253040,-631.19582779,0.00019976,2]
[363768564,1748866253054,-1090.0,0.00019987,2]
[363768566,1748866253065,-151.0,0.00019992,2]
[363768568,1748866253074,-151.0,0.00019992,2]
[363768570,1748866253084,-253.123333,0.00019992,2]
[363768572,1748866253095,-193.985419,0.00019992,2]
[363768574,1748866253104,-193.985419,0.00019992,2]
[363768576,1748866253114,-151.0,0.00019999,2]
[363768579,1748866253127,-9451.23658793,0.0002,3]
[363768581,1748866253137,-3675.08188021,0.0002,2]
[363768583,1748866253147,-3876.6807638,0.0002,2]
[363768585,1748866253157,-222.301594,0.0002,2]
[363768587,1748866253166,-222.301594,0.0002,2]
[363768589,1748866253176,-222.301594,0.0002,2]
[363768591,1748866253186,-222.301594,0.0002,2]
[363768593,1748866253196,-151.0,0.0002,2]
[363768595,1748866253206,-151.0,0.0002,2]
[363768597,1748866253216,-151.0,0.0002,2]
[363768599,1748866253227,-5000.0,0.0002,2]
[363768601,1748866253238,-5204.0,0.0002,2]
[363768603,1748866253247,-151.0,0.0002,2]
[363768605,1748866253257,-151.0,0.0002,2]
[363768607,1748866253267,-223.95390513,0.0002,2]
[363768609,1748866253277,-107290.22368921,0.0002,2]
[363768611,1748866253287,-60262.41756162,0.0002,2]
[363768613,1748866253297,-151.0,0.0002,2]
[363768615,1748866253307,-151.0,0.0002,2]
[363768617,1748866253317,-153.993112,0.0002,2]
[363768619,1748866253327,-153.993112,0.0002,2]
[363768621,1748866253336,-151.0,0.0002,2]
[363768623,1748866253346,-151.0,0.0002,2]
[363768625,1748866253355,-151.0,0.0002,2]
[363768627,1748866253365,-415.293797,0.0002,2]
[363768629,1748866253376,-415.293797,0.0002,2]
[363768631,1748866253386,-151.0,0.0002,2]
[363768633,1748866253396,-151.0,0.0002,2]
[363768635,1748866253406,-151.0,0.0002,2]
[363768637,1748866253416,-151.933813,0.0002,2]
[363768639,1748866253427,-151.0,0.0002,2]
[363768641,1748866253436,-151.0,0.0002,2]
[363768644,1748866253447,-151.0,0.0002,2]
[363768645,1748866253456,-245.49287789,0.0002,4]
[363768647,1748866253466,-311.7329,0.0002,2]
[363768649,1748866253476,-311.7329,0.0002,2]
[363768652,1748866253486,-311.7329,0.0002,2]
[363768653,1748866253496,-311.7329,0.0002,2]
[363768655,1748866253505,-151.0,0.0002,2]
[363768657,1748866253515,-151.0,0.0002,2]
[363768660,1748866253525,-151.0,0.0002,2]
[363768662,1748866253535,-151.0,0.0002,2]
[363768664,1748866253546,-212.83419937,0.0002,7]
[363768666,1748866253556,-151.0,0.0002,2]
[363768668,1748866253570,-151.0,0.0002,2]
[363768670,1748866253580,-151.0,0.0002,2]
[363768672,1748866253590,-151.0,0.0002,2]
[363768674,1748866253599,-809.586366,0.0002,2]
[363768676,1748866253609,-809.586366,0.0002,2]
[363768678,1748866253619,-809.586366,0.0002,2]
[363768680,1748866253628,-809.586366,0.0002,2]
[363768682,1748866253638,-151.0,0.0002,2]
[363768684,1748866253647,-151.0,0.0002,2]
[363768686,1748866253657,-151.0,0.0002,2]
[363768688,1748866253667,-151.0,0.0002,2]
[363768690,1748866253676,-10463.0,0.0002,2]
[363768692,1748866253685,-3000.0,0.0002,2]
[363768694,1748866253695,-193.985419,0.0002,2]
[363768696,1748866253705,-193.985419,0.0002,2]
[363768698,1748866253714,-193.985419,0.0002,2]
[363768700,1748866253723,-193.985419,0.0002,2]
[363768702,1748866253733,-500.0,0.0002,2]
[363768704,1748866253743,-151.0,0.0002,2]
[363768706,1748866253752,-310.289409,0.0002,2]
[363768708,1748866253762,-310.289409,0.0002,2]
[363768710,1748866253772,-151.0,0.0002,2]
[363768712,1748866253783,-500.0,0.0002,2]
[363768714,1748866253793,-774.631681,0.0002,2]
[363768716,1748866253803,-774.631681,0.0002,2]
[363768718,1748866253815,-151.0,0.0002,2]
[363768720,1748866253825,-151.0,0.0002,2]
[363768722,1748866253835,-300.39179917,0.0002,2]
[363768724,1748866253844,-4264.0,0.0002,2]
[363768726,1748866253854,-6489.0,0.0002,2]
[363768728,1748866253864,-151.0,0.0002,2]
[363768730,1748866253875,-151.0,0.0002,2]
[363768732,1748866253885,-151.0,0.0002,2]
[363768734,1748866253895,-258.167146,0.0002,2]
[363768736,1748866253904,-258.167146,0.0002,2]
[363768738,1748866253914,-151.0,0.0002,2]
[363768740,1748866253924,-314.91466509,0.0002,7]
[363768742,1748866253934,-151.0,0.0002,2]
[363768744,1748866253944,-151.0,0.0002,2]
[363768746,1748866253953,-151.0,0.0002,2]
[363768748,1748866253963,-842.5625,0.0002,7]
[363768750,1748866253972,-12668.79298183,0.0002,7]
[363768752,1748866253982,-638.0,0.0002,2]
[363768754,1748866253991,-4000.0,0.0002,4]
[363768756,1748866254001,-260.4103811,0.00020003,2]
[363768758,1748866254011,-3000.0,0.0002001,2]
[363768760,1748866254020,-3000.0,0.0002002,2]
[363768762,1748866254030,-405.0,0.00020022,2]
[363768764,1748866254039,-3000.0,0.0002003,2]
[363768766,1748866254052,-7034.19338387,0.00020038,2]
[363768768,1748866254062,-3000.0,0.0002004,2]
[363768770,1748866254072,-3000.0,0.0002005,2]
[363768772,1748866254081,-270.0455652,0.00020058,2]
[363768774,1748866254091,-3000.0,0.0002006,2]
[363768777,1748866254101,-3000.0,0.0002007,2]
[363768779,1748866254111,-3000.0,0.0002008,2]
[363768781,1748866254120,-3000.0,0.0002009,2]
[363768782,1748866254132,-3000.0,0.000201,2]
[363768784,1748866254142,-3000.0,0.0002011,2]
[363768787,1748866254152,-280.03725112,0.00020113,2]
[363768789,1748866254164,-3000.0,0.0002012,2]
[363768791,1748866254174,-2400.0,0.00020129,2]
[363768793,1748866254183,-3000.0,0.0002013,2]
[363768795,1748866254193,-3000.0,0.0002014,2]
[363768797,1748866254202,-151.0,0.0002014,14]
[363768799,1748866254212,-466.14,0.00020145,2]
[363768801,1748866254221,-430.0,0.00020145,2]
[363768803,1748866254230,-1320.38,0.00020145,2]
[363768805,1748866254240,-244.24332796,0.00020145,2]
[363768807,1748866254250,-471.17,0.00020145,2]
[363768809,1748866254260,-3118.67,0.00020145,2]
[363768811,1748866254270,-4901.09,0.00020146,2]
[363768813,1748866254280,-430.0,0.00020146,2]
[363768815,1748866254289,-4129.7,0.00020146,2]
[363768817,1748866254299,-2242.45,0.00020146,2]
[363768819,1748866254310,-2191.02,0.00020146,2]
[363768821,1748866254320,-785.05,0.00020146,2]
[363768823,1748866254329,-430.0,0.00020146,2]
[363768825,1748866254339,-430.0,0.00020146,2]
[363768827,1748866254348,-619.3,0.00020146,2]
[363768829,1748866254357,-1156.79,0.00020146,2]
[363768831,1748866254367,-430.0,0.00020146,2]
[363768833,1748866254377,-430.0,0.00020146,2]
[363768835,1748866254387,-736.37,0.00020146,2]
[363768837,1748866254396,-1180.67,0.00020146,2]
[363768839,1748866254405,-3770.39,0.00020146,2]
[363768841,1748866254415,-430.0,0.00020146,2]
[363768843,1748866254425,-712.54,0.00020146,2]
[363768845,1748866254434,-461.65,0.00020146,2]
[363768847,1748866254444,-513.8,0.00020146,2]
[363768849,1748866254454,-1174.27,0.00020146,2]
[363768851,1748866254463,-2890.69,0.00020146,2]
[363768853,1748866254473,-430.0,0.00020147,2]
[363768855,1748866254482,-430.0,0.00020147,2]
[363768857,1748866254493,-949.56,0.00020147,2]
[363768859,1748866254503,-430.0,0.00020147,2]
[363768861,1748866254513,-1065.04,0.00020147,2]
[363768863,1748866254523,-430.0,0.00020147,2]
[363768865,1748866254534,-7394.04,0.00020147,2]
[363768867,1748866254544,-1541.52,0.00020147,2]
[363768869,1748866254554,-1130.52,0.00020147,2]
[363768871,1748866254565,-430.0,0.00020147,2]
[363768873,1748866254575,-867.55,0.00020147,2]
[363768875,1748866254586,-4395.71,0.00020147,2]
[363768877,1748866254596,-1146.56,0.00020147,2]
[363768879,1748866254606,-430.0,0.00020147,2]
[363768881,1748866254616,-439.19,0.00020147,2]
[363768883,1748866254627,-452.32,0.00020148,2]
[363768894,1748866254718,-178.557618,0.00020148,2]
[363768896,1748866254728,-151.0,0.00020148,2]
[363768898,1748866254738,-151.0,0.00020148,2]
[363768900,1748866254748,-151.600532,0.00020149,2]
[363768902,1748866254758,-151.0,0.00020149,2]
[363768904,1748866254768,-774.631681,0.00020149,2]
[363768906,1748866254777,-774.631681,0.00020149,2]
[363768908,1748866254787,-181.06848,0.00020149,2]
[363768910,1748866254796,-151.0,0.00020149,2]
[363768912,1748866254806,-151.0,0.00020149,2]
[363768914,1748866254818,-258.167146,0.00020149,2]
[363768916,1748866254827,-258.167146,0.00020149,2]
[363768918,1748866254838,-151.0,0.00020149,2]
[363768920,1748866254847,-3000.0,0.0002015,2]
[363768922,1748866254858,-151.0,0.0002015,2]
[363768924,1748866254867,-189.642577,0.0002015,2]
[363768926,1748866254878,-189.642577,0.0002015,2]
[363768929,1748866254887,-151.0,0.0002015,2]
[363768930,1748866254896,-586.639469,0.0002015,2]
[363768932,1748866254906,-586.639469,0.0002015,2]
[363768934,1748866254915,-151.0,0.00020152,2]
[363768936,1748866254925,-3000.0,0.0002016,2]
[363768938,1748866254935,-290.39862941,0.00020168,2]
[363768941,1748866254944,-3000.0,0.0002017,2]
[363768943,1748866254954,-503.81646108,0.0002017,2]
[363768944,1748866254964,-151.0,0.00020176,2]
[363768946,1748866254974,-158.08511,0.00020176,2]
[363768949,1748866254984,-158.08511,0.00020176,2]
[363768951,1748866254993,-151.0,0.0002018,2]
[363768952,1748866255003,-151.0,0.0002018,2]
[363768954,1748866255012,-3000.0,0.0002018,2]
[363768956,1748866255021,-415.293797,0.00020187,2]
[363768958,1748866255031,-415.293797,0.00020187,2]
[363768960,1748866255040,-3000.0,0.0002019,2]
[363768962,1748866255052,-3000.0,0.000202,2]
[363768964,1748866255064,-151.0,0.000202,3]
[363768966,1748866255074,-151.0,0.000202,2]
[363768968,1748866255083,-3000.0,0.0002021,2]
[363768970,1748866255094,-809.586366,0.0002022,2]
[363768972,1748866255104,-809.586366,0.0002022,2]
[363768974,1748866255113,-3000.0,0.0002022,2]
[363768975,1748866255123,-193.985419,0.0002022,2]
[363768976,1748866255134,-193.985419,0.0002022,2]
[363768977,1748866255146,-301.1433787,0.00020223,2]
[363768978,1748866255155,-3172.80630518,0.00020228,2]
[363768979,1748866255164,-3000.0,0.0002023,2]
[363768980,1748866255174,-215.0738,0.00020239,2]
[363768981,1748866255183,-151.0,0.0002024,2]
[363768982,1748866255193,-3000.0,0.0002024,2]
[363768983,1748866255202,-151.0,0.0002025,2]
[363768984,1748866255211,-151.0,0.0002025,2]
[363768985,1748866255221,-4166.869965,0.0002025,2]
[363768986,1748866255230,-166.0,0.00020274,2]
[363768987,1748866255239,-7034.19338387,0.00020279,3]
[363768989,1748866255249,-151.0,0.00020328,2]
[363768991,1748866255262,-1000.0,0.00020388,2]
[363768993,1748866255272,-151.0,0.00020399,2]
[363768995,1748866255281,-212.83419937,0.000204,3]
[363768997,1748866255291,-160.0,0.000204,3]
[363768999,1748866255300,-310.289409,0.000204,2]
[363769001,1748866255311,-310.289409,0.000204,2]
[363769003,1748866255321,-151.0,0.000204,2]
[363769005,1748866255331,-314.91466509,0.000204,3]
[363769007,1748866255341,-842.5625,0.000204,3]
[363769009,1748866255351,-12668.79298183,0.000204,3]
[363769011,1748866255361,-714.7715287,0.00020411,2]
[363769013,1748866255370,-430.0,0.00020419,2]
[363769015,1748866255379,-1320.38,0.00020419,2]
[363769017,1748866255389,-471.17,0.00020419,2]
[363769019,1748866255399,-3118.67,0.00020419,2]
[363769021,1748866255409,-4901.09,0.0002042,2]
[363769023,1748866255418,-430.0,0.0002042,2]
[363769025,1748866255428,-4129.7,0.0002042,2]
[363769027,1748866255438,-2242.45,0.0002042,2]
[363769029,1748866255448,-2191.02,0.0002042,2]
[363769031,1748866255458,-785.05,0.0002042,2]
[363769033,1748866255468,-430.0,0.0002042,2]
[363769035,1748866255477,-430.0,0.0002042,2]
[363769037,1748866255487,-619.3,0.0002042,2]
[363769039,1748866255496,-1156.79,0.0002042,2]
[363769041,1748866255507,-430.0,0.0002042,2]
[363769043,1748866255517,-736.37,0.0002042,2]
[363769045,1748866255527,-1180.67,0.0002042,2]
[363769047,1748866255536,-3770.39,0.0002042,2]
[363769049,1748866255546,-430.0,0.0002042,2]
[363769051,1748866255556,-712.54,0.0002042,2]
[363769053,1748866255568,-461.65,0.0002042,2]
[363769055,1748866255577,-513.8,0.0002042,2]
[363769057,1748866255588,-1174.27,0.0002042,2]
[363769059,1748866255598,-2890.69,0.0002042,2]
[363769061,1748866255608,-430.0,0.00020421,2]
[363769063,1748866255618,-279.58166395,0.00020421,2]
[363769065,1748866255628,-949.56,0.00020421,2]
[363769068,1748866255639,-430.0,0.00020421,2]
[363769070,1748866255648,-1065.04,0.00020421,2]
[363769072,1748866255659,-430.0,0.00020421,2]
[363769074,1748866255669,-7394.04,0.00020421,2]
[363769076,1748866255679,-1541.52,0.00020421,2]
[363769078,1748866255689,-1130.52,0.00020421,2]
[363769080,1748866255698,-430.0,0.00020421,2]